bitfinex/quotes_BTCUSD_20250727
["timestamp","ask_amount","ask_price","bid_price","bid_amount"]
[1753614242525,0.194371,118330.0,118320.0,0.77565952]
[1753614242785,0.17746963,118330.0,118320.0,0.75875643]
[1753614243274,0.20071884,118330.0,118320.0,0.5898873]
[1753614243530,0.20071884,118330.0,118320.0,0.5893273]
[1753614244051,0.20071884,118330.0,118320.0,0.4539273]
[1753614244260,0.20071884,118330.0,118320.0,0.5892873]
[1753614244732,0.22522884,118330.0,118320.0,0.4254773]
[1753614244963,0.22522884,118330.0,118320.0,0.2208373]
[1753614249311,0.22522884,118330.0,118320.0,0.2238173]
[1753614251614,0.22522884,118330.0,118320.0,0.2466973]
[1753614252088,0.22522884,118330.0,118320.0,0.41573043]
[1753614252323,0.20071884,118330.0,118320.0,0.41775043]
[1753614253342,0.18491884,118330.0,118320.0,0.2487173]
[1753614253751,0.18491884,118330.0,118320.0,0.41775043]
[1753614254111,0.18491884,118330.0,118320.0,0.2487173]
[1753614254979,0.18491884,118330.0,118320.0,0.41775043]
[1753614255186,0.19336963,118330.0,118320.0,0.41775043]
[1753614255588,0.17746963,118330.0,118320.0,0.41775043]
[1753614256280,0.17746963,118330.0,118320.0,0.2487173]
[1753614257745,0.19276963,118330.0,118320.0,0.2487173]
[1753614257986,0.20866963,118330.0,118320.0,0.2487173]
[1753614259387,0.20866963,118330.0,118320.0,0.2466973]
[1753614259616,0.23317963,118330.0,118320.0,0.2466973]
[1753614259841,0.20866963,118330.0,118320.0,0.2466973]
[1753614261642,0.20866963,118330.0,118320.0,0.2487173]
[1753614261888,0.19276963,118330.0,118320.0,0.2487173]
[1753614262112,0.17746963,118330.0,118320.0,0.2487173]
[1753614266757,0.17725835,118330.0,118320.0,0.2487173]
[1753614277471,0.17725835,118330.0,118320.0,0.2645173]
[1753614284722,0.17725835,118330.0,118320.0,0.43355043]
[1753614284977,0.17725835,118330.0,118320.0,0.2645173]
[1753614287851,0.17725835,118330.0,118320.0,0.43355043]
[1753614288270,0.17725835,118330.0,118320.0,0.2645173]
[1753614293385,0.16900492,118340.0,118330.0,0.18491884]
[1753614293618,0.18590529,118340.0,118330.0,0.22847884]
[1753614293846,0.59435523,118340.0,118330.0,0.22847884]
[1753614294543,0.19435523,118340.0,118330.0,0.22847884]
[1753614294764,0.19435523,118340.0,118330.0,0.23047884]
[1753614295492,0.19435523,118340.0,118330.0,0.23347884]
[1753614295893,0.18590529,118340.0,118330.0,0.31795614]
[1753614296137,0.17745514,118340.0,118330.0,0.31795614]
[1753614307478,0.00845001,118340.0,118330.0,0.31795614]
[1753614307701,0.01689973,118340.0,118330.0,0.67445758]
[1753614307938,0.00844958,118340.0,118330.0,0.69135867]
[1753614308164,0.0168993,118340.0,118330.0,0.69980911]
[1753614308387,0.00844958,118340.0,118330.0,0.69980911]
[1753614308839,0.11694699,118350.0,118330.0,0.67585804]
[1753614309059,0.28593727,118350.0,118340.0,0.41191208]
[1753614309286,0.28593727,118350.0,118340.0,0.44091208]
[1753614309520,0.28593727,118350.0,118340.0,0.44796186]
[1753614309738,0.27748812,118350.0,118340.0,0.44796186]
[1753614311803,0.26903875,118350.0,118340.0,0.44796186]
[1753614311999,0.26903875,118350.0,118340.0,0.44896186]
[1753614312969,0.26903875,118350.0,118340.0,0.45096186]
[1753614313199,0.26903875,118350.0,118340.0,0.2819573]
[1753614325835,0.26903875,118350.0,118340.0,0.30777583]
[1753614334017,0.26903875,118350.0,118340.0,0.17309583]
[1753614334242,0.26903875,118350.0,118340.0,0.30757583]
[1753614343430,0.26903875,118350.0,118340.0,0.47658039]
[1753614343664,0.26903875,118350.0,118340.0,0.30757583]
[1753614348152,0.26903875,118350.0,118340.0,0.47658039]
[1753614349671,0.28593756,118350.0,118340.0,0.49348069]
[1753614349884,0.29438671,118350.0,118340.0,0.5019307]
[1753614350304,0.12539643,118350.0,118340.0,0.5019307]
[1753614350757,0.29438671,118350.0,118340.0,0.8419307]
[1753614350999,0.12539643,118350.0,118340.0,0.85038064]
[1753614351216,0.12539643,118350.0,118340.0,0.8419307]
[1753614351965,0.12539643,118350.0,118340.0,0.83348076]
[1753614352211,0.12539643,118350.0,118340.0,0.84193077]
[1753614352443,0.12539643,118350.0,118340.0,0.85038071]
[1753614354609,0.12539643,118350.0,118340.0,0.84193077]
[1753614354791,0.29438671,118350.0,118340.0,0.82503061]
[1753614355232,0.29438671,118350.0,118340.0,0.81658039]
[1753614355959,0.28593756,118350.0,118340.0,0.81658039]
[1753614356176,0.27748819,118350.0,118340.0,0.81658039]
[1753614356620,0.26903875,118350.0,118340.0,0.64757583]
[1753614356842,0.26903875,118350.0,118340.0,0.81658039]
[1753614364248,0.26903875,118350.0,118340.0,0.64757583]
[1753614370410,0.26903875,118350.0,118340.0,0.50805583]
[1753614370640,0.32434875,118350.0,118340.0,0.58741583]
[1753614372420,0.29354875,118350.0,118340.0,0.58741583]
[1753614372874,0.29354875,118350.0,118340.0,0.59054583]
[1753614373352,0.29354875,118350.0,118340.0,0.61474583]
[1753614373820,0.26903875,118350.0,118340.0,0.61474583]
[1753614376370,0.26903875,118350.0,118340.0,0.61670583]
[1753614380845,0.26903875,118350.0,118340.0,0.63310583]
[1753614387015,0.26903875,118350.0,118340.0,0.63306583]
[1753614387236,0.26903875,118350.0,118340.0,0.61666583]
[1753614387446,0.26903875,118350.0,118340.0,0.5908473]
[1753614389265,0.26903875,118350.0,118340.0,0.61649663]
[1753614393823,0.26903875,118350.0,118340.0,0.63209663]
[1753614396670,0.26907875,118350.0,118340.0,0.63209663]
[1753614396875,0.26907875,118350.0,118340.0,0.61649663]
[1753614397547,0.26907875,118350.0,118340.0,0.63159663]
[1753614398010,0.26907875,118350.0,118340.0,0.61649663]
[1753614398902,0.26907875,118350.0,118340.0,0.63159663]
[1753614399779,0.29358875,118350.0,118340.0,0.58688663]
[1753614399999,0.32388875,118350.0,118340.0,0.58688663]
[1753614400499,0.30868875,118350.0,118340.0,0.58688663]
[1753614400703,0.30868875,118350.0,118340.0,0.58987663]
[1753614401036,0.30868875,118350.0,118340.0,0.61433663]
[1753614401282,0.26907875,118350.0,118340.0,0.61433663]
[1753614401506,0.26907875,118350.0,118340.0,0.61636663]
[1753614401787,0.26907875,118350.0,118340.0,0.48256663]
[1753614401965,0.26907875,118350.0,118340.0,0.61632663]
[1753614407872,0.26907875,118350.0,118340.0,0.63182663]
[1753614411842,0.26907875,118350.0,118340.0,0.61632663]
[1753614413092,0.26907875,118350.0,118340.0,0.63212663]
[1753614413322,0.26907875,118350.0,118340.0,0.64742663]
[1753614414468,0.26907875,118350.0,118340.0,0.63212663]
[1753614415102,0.26892675,118350.0,118340.0,0.63212663]
[1753614421019,0.26892675,118350.0,118340.0,0.64712663]
[1753614435476,0.26892675,118350.0,118340.0,0.63212663]
[1753614442207,0.26892675,118350.0,118340.0,0.49836663]
[1753614442427,0.26892675,118350.0,118340.0,0.63168663]
[1753614447245,0.26892675,118350.0,118340.0,0.49836663]
[1753614447482,0.26892675,118350.0,118340.0,0.14256663]
[1753614447725,0.40921405,118350.0,118340.0,0.13624]
[1753614447947,0.21720465,118340.0,118330.0,0.49431409]
[1753614448170,0.21720465,118340.0,118330.0,0.62755409]
[1753614448399,0.64171465,118340.0,118330.0,0.62755409]
[1753614449759,0.64171465,118340.0,118330.0,0.62955409]
[1753614449968,0.64171465,118340.0,118330.0,0.63155409]
[1753614450413,0.64171465,118340.0,118330.0,0.62955409]
[1753614450633,0.64171465,118340.0,118330.0,0.62755409]
[1753614450858,0.64171465,118340.0,118330.0,0.63178409]
[1753614451077,0.64171465,118340.0,118330.0,0.63278409]
[1753614451554,0.70904873,118340.0,118330.0,0.49631409]
[1753614451775,0.64171465,118340.0,118330.0,0.62955409]
[1753614453815,0.58590465,118340.0,118330.0,0.65954409]
[1753614461152,0.58590465,118340.0,118330.0,0.52630409]
[1753614461365,0.70999195,118340.0,118330.0,0.49631409]
[1753614461594,0.72539195,118340.0,118330.0,0.49631409]
[1753614461997,0.64091465,118340.0,118330.0,0.49631409]
[1753614462419,0.62551465,118340.0,118330.0,0.49954409]
[1753614462630,0.58590465,118340.0,118330.0,0.52422409]
[1753614463920,0.58590465,118340.0,118330.0,0.52630409]
[1753614466548,0.58590465,118340.0,118330.0,0.52422409]
[1753614466767,0.72639195,118340.0,118330.0,0.49954409]
[1753614467921,0.64191465,118340.0,118330.0,0.49954409]
[1753614469812,0.62621465,118340.0,118330.0,0.49954409]
[1753614470036,0.58590465,118340.0,118330.0,0.52422409]
[1753614472618,0.58590465,118340.0,118330.0,0.52630409]
[1753614482215,0.58590465,118340.0,118330.0,0.54190409]
[1753614482658,0.58590465,118340.0,118330.0,0.67882409]
[1753614487651,0.58590465,118340.0,118330.0,0.77850139]
[1753614491490,0.18590465,118340.0,118330.0,0.77850139]
[1753614531812,0.18594465,118340.0,118330.0,0.77850139]
[1753614596804,0.18594465,118340.0,118330.0,0.78850139]
[1753614603159,0.18594465,118340.0,118330.0,0.73094139]
[1753614603375,0.24120465,118340.0,118330.0,0.59079139]
[1753614603595,0.24120465,118340.0,118330.0,0.50631409]
[1753614603821,0.24120465,118340.0,118330.0,0.64019409]
[1753614605581,0.20960465,118340.0,118330.0,0.66786409]
[1753614605813,0.18594465,118340.0,118330.0,0.66786409]
[1753614609800,0.18594465,118340.0,118330.0,0.66994409]
[1753614613610,0.58594465,118340.0,118330.0,0.66994409]
[1753614616555,0.18594465,118340.0,118330.0,0.66994409]
[1753614617005,0.58594465,118340.0,118330.0,0.66994409]
[1753614618384,0.17749464,118340.0,118330.0,0.95404023]
[1753614618653,0.17749464,118340.0,118330.0,1.30249117]
[1753614618893,0.01693995,118340.0,118330.0,1.31939268]
[1753614619160,0.20284488,118340.0,118330.0,1.29404023]
[1753614619380,0.20284488,118340.0,118330.0,1.30249117]
[1753614619601,0.20284488,118340.0,118330.0,1.29404023]
[1753614619848,0.19439501,118340.0,118330.0,1.29404023]
[1753614620343,0.19439501,118340.0,118330.0,1.30249117]
[1753614620567,0.19439501,118340.0,118330.0,1.29404023]
[1753614621936,0.18594493,118340.0,118330.0,1.29404023]
[1753614622398,0.17749478,118340.0,118330.0,1.29404023]
[1753614623795,0.17749478,118340.0,118330.0,1.12502139]
[1753614624319,0.17749478,118340.0,118330.0,1.29404023]
[1753614624555,0.18590479,118340.0,118330.0,1.31094189]
[1753614625480,0.18590479,118340.0,118330.0,1.3024911]
[1753614625705,0.18590479,118340.0,118330.0,1.29404023]
[1753614625924,0.18590479,118340.0,118330.0,1.3024911]
[1753614626154,0.18590479,118340.0,118330.0,1.29404023]
[1753614626393,0.18590479,118340.0,118330.0,1.31094204]
[1753614626852,0.18590479,118340.0,118330.0,1.31939283]
[1753614627079,0.18590479,118340.0,118330.0,1.31094204]
[1753614627823,0.67737562,118350.0,118340.0,0.20030456]
[1753614628061,0.67737562,118350.0,118340.0,0.78596182]
[1753614628062,0.53373272,118350.0,118340.0,0.78596182]
[1753614628288,0.53373272,118350.0,118340.0,0.81361196]
[1753614628509,0.53373272,118350.0,118340.0,0.82206183]
[1753614628731,0.13373272,118350.0,118340.0,0.82206183]
[1753614629007,0.13373272,118350.0,118340.0,0.81361196]
[1753614629228,0.14218216,118350.0,118340.0,0.46516202]
[1753614629367,0.13373272,118350.0,118340.0,0.47361196]
[1753614629787,0.14318216,118350.0,118340.0,0.47361196]
[1753614630520,0.14218216,118350.0,118340.0,0.46516202]
[1753614630699,0.30272357,118350.0,118340.0,0.45671201]
[1753614631819,0.30272357,118350.0,118340.0,0.45671208]
[1753614632039,0.29427456,118350.0,118340.0,0.45671208]
[1753614632483,0.29427456,118350.0,118340.0,0.44826186]
[1753614632706,0.27737619,118350.0,118340.0,0.44826186]
[1753614633155,0.27737619,118350.0,118340.0,0.45671208]
[1753614633370,0.11683513,118350.0,118340.0,0.46516216]
[1753614633592,0.11683513,118350.0,118340.0,0.45671208]
[1753614633823,0.28582541,118350.0,118340.0,0.45671208]
[1753614634772,0.28582541,118350.0,118340.0,0.44826186]
[1753614634970,0.28582541,118350.0,118340.0,0.45671208]
[1753614635478,0.28582541,118350.0,118340.0,0.46516223]
[1753614636553,0.28582541,118350.0,118340.0,0.45671208]
[1753614637222,0.28582541,118350.0,118340.0,0.46516216]
[1753614637428,0.28582541,118350.0,118340.0,0.46516223]
[1753614637643,0.11683513,118350.0,118340.0,0.47361224]
[1753614637849,0.11683513,118350.0,118340.0,0.47361231]
[1753614638068,0.11683513,118350.0,118340.0,0.48206232]
[1753614638280,0.11683513,118350.0,118340.0,0.47361231]
[1753614638988,0.12528407,118350.0,118340.0,0.49051226]
[1753614639171,0.12528407,118350.0,118340.0,0.48206232]
[1753614639430,0.13373358,118350.0,118340.0,0.47361231]
[1753614639866,0.30272386,118350.0,118340.0,0.46516223]
[1753614640706,0.30272386,118350.0,118340.0,0.44826186]
[1753614641060,0.30272386,118350.0,118340.0,0.45671208]
[1753614641261,0.30272386,118350.0,118340.0,0.46516223]
[1753614641869,0.30272386,118350.0,118340.0,0.45671208]
[1753614642094,0.30272386,118350.0,118340.0,0.46516223]
[1753614643485,0.12528407,118350.0,118340.0,0.47361224]
[1753614643715,0.13373358,118350.0,118340.0,0.46516223]
[1753614643948,0.13373358,118350.0,118340.0,0.47361231]
[1753614644408,0.30272386,118350.0,118340.0,0.46516223]
[1753614645514,0.13373358,118350.0,118340.0,0.47361231]
[1753614645741,0.30272386,118350.0,118340.0,0.46516223]
[1753614646161,0.30272386,118350.0,118340.0,0.45671208]
[1753614646376,0.30272386,118350.0,118340.0,0.46516223]
[1753614646604,0.30272386,118350.0,118340.0,0.45671208]
[1753614648210,0.30272386,118350.0,118340.0,0.46516223]
[1753614649114,0.30272386,118350.0,118340.0,0.45671208]
[1753614649603,0.30272386,118350.0,118340.0,0.47361231]
[1753614649827,0.30272386,118350.0,118340.0,0.46516223]
[1753614650474,0.30272386,118350.0,118340.0,0.45671208]
[1753614650994,0.30272386,118350.0,118340.0,0.46516223]
[1753614651427,0.30272386,118350.0,118340.0,0.45671208]
[1753614653727,0.30272386,118350.0,118340.0,0.46516223]
[1753614653932,0.30272386,118350.0,118340.0,0.49070523]
[1753614654620,0.30272386,118350.0,118340.0,0.49915531]
[1753614654874,0.30272386,118350.0,118340.0,0.49070523]
[1753614657169,0.30272386,118350.0,118340.0,0.48225508]
[1753614657513,0.30272386,118350.0,118340.0,0.49070523]
[1753614657726,0.30272386,118350.0,118340.0,0.48225508]
[1753614658055,0.30272386,118350.0,118340.0,0.49070516]
[1753614658522,0.30272386,118350.0,118340.0,0.48225508]
[1753614658762,0.29427485,118350.0,118340.0,0.48225508]
[1753614659244,0.29427485,118350.0,118340.0,0.47380486]
[1753614659487,0.28582563,118350.0,118340.0,0.47380486]
[1753614660245,0.27737626,118350.0,118340.0,0.47380486]
[1753614670219,0.27737626,118350.0,118340.0,0.45870486]
[1753614673330,0.27737626,118350.0,118340.0,0.47500486]
[1753614677827,0.26892675,118350.0,118340.0,0.47500486]
[1753614678833,0.26892675,118350.0,118340.0,0.45870486]
[1753614679071,0.26892675,118350.0,118340.0,0.2897003]
[1753614679288,0.29169675,118350.0,118340.0,0.2438203]
[1753614680448,0.29169675,118350.0,118340.0,0.41282486]
[1753614680675,0.26892675,118350.0,118340.0,0.41801486]
[1753614680875,0.26892675,118350.0,118340.0,0.45787486]
[1753614681424,0.26892675,118350.0,118340.0,0.2738703]
[1753614687768,0.26892675,118350.0,118340.0,0.2904703]
[1753614691573,0.26892675,118350.0,118340.0,0.3057703]
[1753614694273,0.26892675,118350.0,118340.0,0.47477486]
[1753614695456,0.26892675,118350.0,118340.0,0.3057703]
[1753614703163,0.26892675,118350.0,118340.0,0.47477486]
[1753614712548,0.26892675,118350.0,118340.0,0.44923186]
[1753614716888,0.26892675,118350.0,118340.0,0.47453024]
[1753614719948,0.26892675,118350.0,118340.0,0.30552568]
[1753614720612,0.26892675,118350.0,118340.0,0.47453024]
[1753614723325,0.26892675,118350.0,118340.0,0.30552568]
[1753614723586,0.32503675,118350.0,118340.0,0.24277568]
[1753614723841,0.32503675,118350.0,118340.0,0.2174773]
[1753614724334,0.72503675,118350.0,118340.0,0.133]
[1753614725053,0.17745464,118340.0,118330.0,0.50431409]
[1753614725303,0.23356464,118340.0,118330.0,0.72179139]
[1753614727987,0.23356464,118340.0,118330.0,0.72279139]
[1753614730166,0.23356464,118340.0,118330.0,0.72479139]
[1753614733309,0.23356464,118340.0,118330.0,0.72783139]
[1753614734314,0.23356464,118340.0,118330.0,0.75037139]
[1753614736383,0.20905464,118340.0,118330.0,0.75037139]
[1753614739189,0.19305464,118340.0,118330.0,0.75037139]
[1753614740542,0.17745464,118340.0,118330.0,0.75037139]
[1753614740751,0.17745464,118340.0,118330.0,0.75242139]
[1753614749436,0.17745464,118340.0,118330.0,0.92144023]
[1753614749647,0.17745464,118340.0,118330.0,0.75242139]
[1753614761232,0.17745464,118340.0,118330.0,0.76752139]
[1753614761715,0.18590465,118340.0,118330.0,0.93654023]
[1753614761938,0.18590465,118340.0,118330.0,0.95154023]
[1753614763131,0.18594465,118340.0,118330.0,0.95154023]
[1753614767388,0.18594465,118340.0,118330.0,0.78252139]
[1753614768477,0.18594465,118340.0,118330.0,0.95154023]
[1753614771025,0.18594465,118340.0,118330.0,0.78252139]
[1753614775684,0.18594465,118340.0,118330.0,0.95154023]
[1753614776110,0.18594465,118340.0,118330.0,0.78252139]
[1753614785934,0.18594465,118340.0,118330.0,0.95154023]
[1753614787667,0.18594465,118340.0,118330.0,0.78252139]
[1753614788316,0.18594465,118340.0,118330.0,0.95154023]
[1753614788992,0.17749464,118340.0,118330.0,0.78252139]
[1753614797636,0.17749464,118340.0,118330.0,0.95154023]
[1753614798832,0.17749464,118340.0,118330.0,0.78252139]
[1753614799510,0.17749464,118340.0,118330.0,0.95154023]
[1753614801640,0.16904456,118340.0,118330.0,0.95154023]
[1753614808743,0.18594479,118340.0,118330.0,0.95999117]
[1753614808989,0.19439466,118340.0,118330.0,0.95999117]
[1753614809201,0.19439466,118340.0,118330.0,0.95154023]
[1753614810309,0.19439466,118340.0,118330.0,0.95999117]
[1753614810738,0.02538953,118340.0,118330.0,0.96844189]
[1753614810938,0.20284431,118340.0,118330.0,0.95999117]
[1753614811368,0.20284431,118340.0,118330.0,0.95154023]
[1753614811609,0.20284431,118340.0,118330.0,0.95999117]
[1753614811813,0.19439466,118340.0,118330.0,0.95154023]
[1753614812233,0.19439466,118340.0,118330.0,0.95999117]
[1753614812356,0.19439466,118340.0,118330.0,0.95154023]
[1753614814751,0.19439466,118340.0,118330.0,0.95999117]
[1753614816114,0.19439466,118340.0,118330.0,0.97689283]
[1753614816277,0.19439466,118340.0,118330.0,0.96844204]
[1753614816946,0.19439466,118340.0,118330.0,0.95999117]
[1753614817680,0.19439466,118340.0,118330.0,0.96844196]
[1753614818171,0.19439466,118340.0,118330.0,0.96844204]
[1753614818399,0.19439466,118340.0,118330.0,0.97689283]
[1753614819061,0.19439466,118340.0,118330.0,0.96844204]
[1753614819517,4e-05,118340.0,118330.0,0.98534348]
[1753614819737,0.01693959,118340.0,118330.0,1.51605892]
[1753614820004,0.00848972,118340.0,118330.0,1.51605892]
[1753614820454,0.01693959,118340.0,118330.0,1.51605892]
[1753614821097,0.01693959,118340.0,118330.0,1.50760848]
[1753614821354,0.0253896,118340.0,118330.0,1.51605906]
[1753614821554,0.0253896,118340.0,118330.0,1.51605863]
[1753614821985,0.01693959,118340.0,118330.0,1.5160582]
[1753614822403,0.01693959,118340.0,118330.0,1.49070667]
[1753614822637,0.02538967,118340.0,118330.0,1.49070667]
[1753614823569,0.03383989,118340.0,118330.0,1.48225602]
[1753614823761,0.02538967,118340.0,118330.0,1.46539374]
[1753614824238,0.02538967,118340.0,118330.0,1.47384439]
[1753614824465,0.02538967,118340.0,118330.0,1.46539374]
[1753614824943,0.02538967,118340.0,118330.0,1.47384439]
[1753614826029,0.0253896,118340.0,118330.0,1.48229497]
[1753614826822,4e-05,118340.0,118330.0,1.83074513]
[1753614827060,0.00848958,118340.0,118330.0,1.83074513]
[1753614827276,0.01693937,118340.0,118330.0,1.83074513]
[1753614827488,0.0169393,118340.0,118330.0,1.83074513]
[1753614827921,0.0169393,118340.0,118330.0,1.33379313]
[1753614828132,0.01693923,118340.0,118330.0,2.11816613]
[1753614829248,0.02538902,118340.0,118330.0,2.11816613]
[1753614829469,0.01693923,118340.0,118330.0,2.11816613]
[1753614829874,0.02538902,118340.0,118330.0,2.11816613]
[1753614830097,0.01693923,118340.0,118330.0,2.11816613]
[1753614830348,0.02538902,118340.0,118330.0,2.11816613]
[1753614830641,0.02538895,118340.0,118330.0,2.11816613]
[1753614830896,4e-05,118340.0,118330.0,2.11816613]
[1753614840339,4e-05,118340.0,118330.0,4.11690713]
[1753614840486,4e-05,118340.0,118330.0,4.06620713]
[1753614841978,4e-05,118340.0,118330.0,3.81056413]
[1753614842651,4e-05,118340.0,118330.0,3.78309613]
[1753614842873,4e-05,118340.0,118330.0,3.69854413]
[1753614843098,4e-05,118340.0,118330.0,3.31198113]
[1753614843356,4e-05,118340.0,118330.0,2.87134913]
[1753614843578,4e-05,118340.0,118330.0,2.30491713]
[1753614843810,4e-05,118340.0,118330.0,2.14386613]
[1753614844817,4e-05,118340.0,118330.0,1.99445113]
[1753614845088,0.00848965,118340.0,118330.0,1.79895413]
[1753614845298,4e-05,118340.0,118330.0,1.79895413]
[1753614850187,4e-05,118340.0,118330.0,1.33379313]
[1753614850405,4e-05,118340.0,118330.0,4.89189113]
[1753614850622,4e-05,118340.0,118330.0,4.34937413]
[1753614851301,4e-05,118340.0,118330.0,4.40546713]
[1753614851518,4e-05,118340.0,118330.0,4.40346713]
[1753614851955,4e-05,118340.0,118330.0,3.90224513]
[1753614852177,4e-05,118340.0,118330.0,3.56334713]
[1753614852435,4e-05,118340.0,118330.0,1.33379313]
[1753614852668,4e-05,118340.0,118330.0,3.91133313]
[1753614853566,4e-05,118340.0,118330.0,4.83137713]
[1753614854061,4e-05,118340.0,118330.0,4.62840613]
[1753614854278,4e-05,118340.0,118330.0,3.90312613]
[1753614854499,4e-05,118340.0,118330.0,3.81811613]
[1753614855123,4e-05,118340.0,118330.0,2.62839613]
[1753614855558,4e-05,118340.0,118330.0,2.14039913]
[1753614855774,4e-05,118340.0,118330.0,2.08200813]
[1753614856441,4e-05,118340.0,118330.0,2.22891913]
[1753614857541,4e-05,118340.0,118330.0,2.29077313]
[1753614857779,4e-05,118340.0,118330.0,2.26727313]
[1753614858087,4e-05,118340.0,118330.0,2.22891913]
[1753614858423,4e-05,118340.0,118330.0,2.66847813]
[1753614858670,4e-05,118340.0,118330.0,2.09044513]
[1753614859530,4e-05,118340.0,118330.0,2.32001713]
[1753614859948,4e-05,118340.0,118330.0,1.78988513]
[1753614860575,4e-05,118340.0,118330.0,2.39536113]
[1753614861682,4e-05,118340.0,118330.0,2.61636113]
[1753614861886,4e-05,118340.0,118330.0,2.58865113]
[1753614862089,4e-05,118340.0,118330.0,2.04597213]
[1753614862348,4e-05,118340.0,118330.0,2.03189713]
[1753614862601,4e-05,118340.0,118330.0,2.45371313]
[1753614863583,4e-05,118340.0,118330.0,2.79571313]
[1753614864141,4e-05,118340.0,118330.0,2.75998613]
[1753614865205,4e-05,118340.0,118330.0,2.45571313]
[1753614866169,4e-05,118340.0,118330.0,2.44183713]
[1753614866814,4e-05,118340.0,118330.0,2.41137713]
[1753614868009,4e-05,118340.0,118330.0,2.41171013]
[1753614868728,4e-05,118340.0,118330.0,2.41137713]
[1753614869150,4e-05,118340.0,118330.0,2.15573513]
[1753614869372,4e-05,118340.0,118330.0,2.12939213]
[1753614870357,4e-05,118340.0,118330.0,1.33379313]
[1753614870528,4e-05,118340.0,118330.0,2.25939213]
[1753614870687,4e-05,118340.0,118330.0,1.33379313]
[1753614870889,4e-05,118340.0,118330.0,2.13939213]
[1753614871327,4e-05,118340.0,118330.0,2.11699213]
[1753614871746,4e-05,118340.0,118330.0,2.45913113]
[1753614872311,4e-05,118340.0,118330.0,2.43826213]
[1753614872846,4e-05,118340.0,118330.0,2.47862013]
[1753614873489,4e-05,118340.0,118330.0,2.46850113]
[1753614873659,4e-05,118340.0,118330.0,2.29439413]
[1753614873882,4e-05,118340.0,118330.0,2.34936913]
[1753614874881,4e-05,118340.0,118330.0,1.33379313]
[1753614875088,4e-05,118340.0,118330.0,2.34857613]
[1753614875444,4e-05,118340.0,118330.0,2.31864713]
[1753614875993,4e-05,118340.0,118330.0,2.34857613]
[1753614876893,4e-05,118340.0,118330.0,1.33379313]
[1753614877158,4e-05,118340.0,118330.0,2.34857613]
[1753614878016,4e-05,118340.0,118330.0,2.70405013]
[1753614878509,4e-05,118340.0,118330.0,2.25186513]
[1753614879144,4e-05,118340.0,118330.0,2.36162813]
[1753614880055,4e-05,118340.0,118330.0,2.35535813]
[1753614880257,0.13316355,118350.0,118340.0,0.52560076]
[1753614880458,0.13316355,118350.0,118340.0,1.396582]
[1753614880690,0.13316355,118350.0,118340.0,1.419882]
[1753614880840,0.12471426,118350.0,118340.0,1.419882]
[1753614881050,0.13316363,118350.0,118340.0,1.38903213]
[1753614881256,0.13316363,118350.0,118340.0,0.76826813]
[1753614881424,0.13316355,118350.0,118340.0,0.77671814]
[1753614881836,0.13316355,118350.0,118340.0,0.75981805]
[1753614882069,0.13316355,118350.0,118340.0,0.77671828]
[1753614882243,0.13316355,118350.0,118340.0,0.78516829]
[1753614883361,0.13316355,118350.0,118340.0,0.77671828]
[1753614883780,0.30215433,118350.0,118340.0,0.75981805]
[1753614883988,0.31060384,118350.0,118340.0,0.75136783]
[1753614884127,0.31060384,118350.0,118340.0,0.75981805]
[1753614884350,0.30215476,118350.0,118340.0,0.75136783]
[1753614884552,0.30215476,118350.0,118340.0,0.75981805]
[1753614884794,0.12471497,118350.0,118340.0,0.76826813]
[1753614884973,0.13316441,118350.0,118340.0,0.7682682]
[1753614885171,0.14161392,118350.0,118340.0,0.75981805]
[1753614885450,0.30215498,118350.0,118340.0,0.75136783]
[1753614885619,0.33986632,118350.0,118340.0,0.4244773]
[1753614885821,0.33986632,118350.0,118340.0,0.5562773]
[1753614888590,0.33986632,118350.0,118340.0,0.72528186]
[1753614889345,0.33986632,118350.0,118340.0,0.5562773]
[1753614889563,0.33141688,118350.0,118340.0,0.5562773]
[1753614890194,0.33141688,118350.0,118340.0,0.72528186]
[1753614891054,0.33141688,118350.0,118340.0,0.5562773]
[1753614891332,0.33141688,118350.0,118340.0,0.72528186]
[1753614892339,0.33986617,118350.0,118340.0,0.72528186]
[1753614892554,0.30976617,118350.0,118340.0,0.72528186]
[1753614892748,0.28525617,118350.0,118340.0,0.75167186]
[1753614893005,0.11626589,118350.0,118340.0,0.75167186]
[1753614893178,0.11626546,118350.0,118340.0,0.76217201]
[1753614893535,0.13316441,118350.0,118340.0,0.76217208]
[1753614893658,0.13316441,118350.0,118340.0,0.75372186]
[1753614894070,0.13316441,118350.0,118340.0,0.76217208]
[1753614894623,0.13316441,118350.0,118340.0,0.77062223]
[1753614894876,0.1247149,118350.0,118340.0,0.76217208]
[1753614895640,0.13316356,118350.0,118340.0,0.77062223]
[1753614895906,0.13316356,118350.0,118340.0,0.76217208]
[1753614896160,0.14161307,118350.0,118340.0,0.75372186]
[1753614896653,0.14161307,118350.0,118340.0,0.76217208]
[1753614896942,0.14161307,118350.0,118340.0,0.78432186]
[1753614897153,0.14161307,118350.0,118340.0,0.79277208]
[1753614897704,0.13316356,118350.0,118340.0,0.80122223]
[1753614899007,0.14161307,118350.0,118340.0,0.80122223]
[1753614899130,0.10781596,118350.0,118340.0,0.80122223]
[1753614899362,0.16227006,118360.0,118350.0,0.16899028]
[1753614899601,0.16227006,118360.0,118350.0,0.41168758]
[1753614901342,0.16227006,118360.0,118350.0,0.2426973]
[1753614901535,0.16327006,118360.0,118350.0,0.2426973]
[1753614901920,0.16327006,118360.0,118350.0,0.41168758]
[1753614902547,0.16327006,118360.0,118350.0,0.41369758]
[1753614903817,0.16327006,118360.0,118350.0,0.2447073]
[1753614905741,0.17887006,118360.0,118350.0,0.2426973]
[1753614907702,0.21866006,118360.0,118350.0,0.2195173]
[1753614907936,0.21866006,118360.0,118350.0,0.2162773]
[1753614912869,0.21866006,118360.0,118350.0,0.2195173]
[1753614913743,0.21866006,118360.0,118350.0,0.24510917]
[1753614914394,0.19537006,118360.0,118350.0,0.24510917]
[1753614914608,0.19537006,118360.0,118350.0,0.26828917]
[1753614915081,0.17887006,118360.0,118350.0,0.26828917]
[1753614915310,0.16327006,118360.0,118350.0,0.26828917]
[1753614916475,0.16327006,118360.0,118350.0,0.27029917]
[1753614932975,0.16327006,118360.0,118350.0,0.28609917]
[1753614939832,0.16327006,118360.0,118350.0,0.28517617]
[1753614943745,0.16327006,118360.0,118350.0,0.30087617]
[1753614944552,0.16327006,118360.0,118350.0,0.46986645]
[1753614945131,0.16327006,118360.0,118350.0,0.30087617]
[1753614946011,0.16327006,118360.0,118350.0,0.46986645]
[1753614946354,0.16327006,118360.0,118350.0,0.30087617]
[1753614956767,0.16327006,118360.0,118350.0,0.26937617]
[1753614957666,0.16327006,118360.0,118350.0,0.28497617]
[1753614962401,0.16327006,118360.0,118350.0,0.26937617]
[1753614965543,0.16327006,118360.0,118350.0,0.28507617]
[1753614969332,0.16327006,118360.0,118350.0,0.30047617]
[1753614972421,0.16327006,118360.0,118350.0,0.2748843]
[1753614979331,0.16327006,118360.0,118350.0,0.30057507]
[1753614986234,0.16327006,118360.0,118350.0,0.16877507]
[1753614986458,0.16327006,118360.0,118350.0,0.30049507]